Cogmind - Beta 15 @@@ ROGUE MODE // 2025.08.09 @ 16:38:14 Player: Naughtyusername Result: Destroyed by DY-AI8(R) with Subdweller Shrapnel Launcher Performance ------------- Evolutions (0) 0 Regions Visited (2) 400 Robots Destroyed (17) 85 Value Destroyed (344) 344 Prototype IDs (2) 40 Alien Tech Used (0) 0 Bonus (0) 0 TOTAL SCORE: 869 Bonus ------- None Cogmind --------- Core Integrity 0/250 Matter 158/300 Energy 97/100 System Corruption 0% Temperature Cool (0) Movement Core (50) Location -10/Subcaves Parts ------- > --- POWER (1) -------- (None) > --- PROPULSION (2) --- (None) > --- UTILITY (2) ------ (None) > --- WEAPON (2) ------- (None) > --- INVENTORY (5) ---- Light Ion Engine Wheel Wheel Hacking Suite EM Pulse Gun Peak State ------------ > --- POWER ------------ Light Ion Engine > --- PROPULSION ------- Aluminum Leg Aluminum Leg > --- UTILITY ---------- Small Storage Unit Seismic Detector > --- WEAPON ----------- EM Pulse Gun EM Pulse Gun > --- INVENTORY -------- Light Ion Engine Light Treads Light Treads Wheel Wheel Wheel Improved Terrain Scanner Small Laser [Rating: 8] Favorites ----------- Power Light Ion Engine Engine Light Ion Engine Propulsion Wheel Treads Light Treads Leg Aluminum Leg Wheel Wheel Utility Small Storage Unit Device Seismic Detector Storage Small Storage Unit Weapon EM Pulse Gun Energy Gun EM Pulse Gun Ballistic Gun Assault Rifle Launcher Grenade Launcher Build | -11 -10 -10 ------- Run | Yrd Mat Sub Slots Evolved . | . . . Power . | . . . Propulsion . | . . . Utility . | . . . Weapon . | . . . Parts Attached 11 | 1 6 4 Power . | . . . Engine . | . . . Core . | . . . Reactor . | . . . Propulsion 7 | . 6 1 Treads 4 | . 3 1 Leg . | . . . Wheel 3 | . 3 . Hover . | . . . Flight . | . . . Utility 1 | 1 . . Device 1 | 1 . . Storage . | . . . Processor . | . . . Hackware . | . . . Protection . | . . . Artifact . | . . . Weapon 3 | . . 3 Energy Gun . | . . . Energy Cannon . | . . . Ballistic Gun 2 | . . 2 Ballistic Cannon . | . . . Launcher 1 | . . 1 Special Weapon . | . . . Impact Weapon . | . . . Slashing Weapon . | . . . Piercing Weapon . | . . . Special Melee Weapon . | . . . Unidentified Prototypes . | . . . Parts Lost 8 | . . 8 Power 1 | . . 1 Propulsion 2 | . . 2 Utility 1 | . . 1 Weapon 4 | . . 4 Highest Loss Streak 8 | . . 8 To Critical Strikes 1 | . . 1 Average Backups 7 | 6 7 6 Power 1 | 1 1 1 Propulsion 3 | 4 3 2 Utility 1 | . 1 1 Weapon 1 | 1 1 2 Tool/Special . | . . . Unused Backups 17 | . 12 5 Power 3 | . 1 2 Propulsion 6 | . 5 1 Utility 4 | . 3 1 Weapon 4 | . 3 1 Tool/Special . | . . . Average Slot Usage (%) 98 | . 100 96 Engine 13 | . 14 13 Treads 7 | . 10 2 Leg 2 | . 4 . Wheel 18 | . 12 24 Device 13 | . 14 12 Storage 14 | . 14 14 Energy Gun 26 | . 28 24 Ballistic Gun 1 | . . 2 Peak Build Rating 8 | 8 8 7 Average Rating 7 | 6 7 6 On Entrance 7 | 6 8 7 Naked Turns 2 | . . 2 Heaviest Build 13 | 13 13 13 Greatest Support 40 | 20 40 20 Greatest Overweight (x) 1 | . 1 . Average Overweight (x) . | . . . Largest Inventory Capacity 8 | 8 8 8 Average Capacity 7 | 8 8 7 Most Carried 8 | 8 8 7 Average Carried 7 | 6 7 6 Final Capacity 8 | 8 8 5 Final Carried 8 | 8 7 5 Class Distribution -------------------- 100% | Mutant Dominant Class ---------------- Mutant | -10/Materials Mutant | -10/Subcaves Resources | -11 -10 -10 ----------- Run | Yrd Mat Sub Matter Collected 290 | 210 60 20 Remotely . | . . . Salvage Created 633 | 118 348 167 Parts 42 | 5 23 14 Haulers Intercepted 2 | . 2 . Recyclers Shooed 3 | 2 1 . Parts Field Recycled . | . . . Retrieved Matter . | . . . Parts Self-Destructed 5 | . . 5 Prevented . | . . . Kills | -11 -10 -10 ------- Run | Yrd Mat Sub Combat Hostiles Destroyed 9 | . 4 5 Guns 2 | . 1 1 AOE 6 | . 3 3 Classes Destroyed 9 | 2 6 1 Builder 1 | . 1 . Tunneler 1 | 1 . . Hauler 2 | . 2 . Recycler 2 | 1 1 . Operator 1 | . 1 . Watcher 1 | . 1 . Swarmer 3 | . 3 . Grunt 1 | . 1 . Subdweller 5 | . . 5 Best Kill Streak 5 | 1 5 3 Combat Bots Only 3 | . 3 3 Max Kills in Single Turn 2 | 1 2 2 Gunslinging . | . . . Exploded 2 | . 2 2 Melee . | . . . Uniques/NPCs Destroyed . | . . . Combat | -11 -10 -10 -------- Run | Yrd Mat Sub Hostile Shots Fired 42 | . 8 34 Missed 16 | . 4 12 Hits 26 | . 4 22 Projectile 26 | . 4 22 AOE 8 | . . 8 Critical Strikes 2 | . . 2 Damage Taken 939 | . 71 868 Core 270 | . 7 263 Absorbed by Shields . | . . . Regen/Repaired (Parts) 4 | . 4 . Core Remaining (%) 100 | 100 . . Volleys Fired 44 | 7 13 24 Largest 2 | 2 2 2 Hottest 80 | 80 80 80 Shots Fired 81 | 14 26 41 Gun 74 | 14 26 34 Cannon . | . . . Launcher 7 | . . 7 Special . | . . . Kinetic 24 | . . 24 Thermal . | . . . Explosive 7 | . . 7 Electromagnetic 50 | 14 26 10 Robot Hit Streak 12 | 4 10 12 Robot Miss Streak 5 | 5 3 2 Penetration Max . | . . . Secondary Targets . | . . . Shots Hit Robots 51 | 5 15 31 Core Hits 23 | 3 12 8 Critical Kills . | . . . Critical Parts Destroyed . | . . . Critical Strikes . | . . . Melee Attacks . | . . . Impact . | . . . Slashing . | . . . Piercing . | . . . Sneak Attacks . | . . . Combat Hostiles . | . . . Follow-up Attacks . | . . . Damage Inflicted 1114 | 67 420 627 Guns 556 | 67 195 294 Cannons . | . . . Explosions 558 | . 225 333 Melee . | . . . Ramming . | . . . Kinetic 186 | . . 186 Thermal 225 | . 225 . Explosive 333 | . . 333 Electromagnetic 370 | 67 195 108 Impact . | . . . Slashing . | . . . Piercing . | . . . Highest Corruption . | . . . Average Corruption . | . . . Corruption Purged . | . . . Corruption Blocked . | . . . Overload Shots . | . . . Overflow Damage 29 | . 14 15 Projectiles . | . . . Explosions 29 | . 14 15 Melee . | . . . Knockbacks . | . . . Impact . | . . . Kinetic . | . . . Secondary . | . . . Self-Inflicted Damage 140 | . 39 101 Shots 5 | . 1 4 Rammed . | . . . Targets Rammed . | . . . Kicked . | . . . Crushed . | . . . Highest Temperature 54 | 54 54 . Average Temperature 22 | 22 22 . Received Heat Transfer 30 | . . 30 Siege Activations . | . . . Martial Activations . | . . . Shielding Activations . | . . . Robots Disrupted . | . . . Combat Hostiles . | . . . Robots Corrupted 1 | . . 1 Combat Hostiles 1 | . . 1 Parts Fried 2 | . . 2 Impact Corruptions . | . . . Robots Melted . | . . . Combat Hostiles . | . . . Parts Melted . | . . . Heat Transferred 300 | . 300 . Parts Sabotaged . | . . . Parts Stolen . | . . . Parts Stripped . | . . . Power Chain Reactions 4 | . 4 . Alert | -11 -10 -10 ------- Run | Yrd Mat Sub Maximum Alert Level . | . . . Low Security (%) 100 | 100 100 . Level 1 . | . . . Level 2 . | . . . Level 3 . | . . . Level 4 . | . . . Level 5 . | . . . High Security . | . . . Max Security . | . . . Peak Influence 122 | 5 122 . Initial . | . . . Average 39 | 1 44 . Influence Increases 183 | 10 173 . Destroy 0b10 Robot/C 80 | . 80 . Destroy 0b10 Robot/NC 40 | 10 30 . Destroy Leader 16 | . 16 . Successful Hack 5 | . 5 . Disable Machine 30 | . 30 . Destroy Structure 12 | . 12 . Influence Decreases 183 | 10 173 . Time Decay 183 | 10 173 . Squads Dispatched 1 | . 1 . Investigation 1 | . 1 . Extermination . | . . . Reinforcement . | . . . Assault . | . . . Garrison . | . . . Intercept . | . . . Searches Triggered . | . . . Construction Impeded . | . . . Haulers Reinforced . | . . . Active Scanning Responses . | . . . Cargo Convoy Interrupts . | . . . Stealth | -11 -10 -10 --------- Run | Yrd Mat Sub Distress Signals . | . . . Communications Jammed . | . . . Distress Signals . | . . . Times Spotted 14 | . 5 9 Peak Tracking Total 4 | . 3 4 Tactical Retreats 2 | . . 2 Traps | -11 -10 -10 ------- Run | Yrd Mat Sub Traps Triggered . | . . . Indirectly . | . . . Trap Hack Attempts . | . . . Triggered . | . . . Disarmed . | . . . Reprogrammed . | . . . Reused . | . . . Traps Extracted . | . . . Installed . | . . . Triggered . | . . . Machines | -11 -10 -10 ---------- Run | Yrd Mat Sub Machines Disabled 2 | . 2 . Max in Single Turn 1 | . 1 . Machines Repaired . | . . . Machines Dismantled . | . . . Machines Sabotaged . | . . . Overloaded Fab Kills . | . . . Hacking | -11 -10 -10 --------- Run | Yrd Mat Sub Machines Accessed 6 | . 6 . Terminals 4 | . 4 . Fabricators . | . . . Repair Stations 1 | . 1 . Recycling Units 1 | . 1 . Scanalyzers . | . . . Garrison Access . | . . . Total Hacks 17 | . 17 . Successful 6 | . 6 . Failed 11 | . 11 . Catastrophic 1 | . 1 . Database Lockouts . | . . . Manual 13 | . 13 . Terminals 12 | . 12 . Fabricators . | . . . Repair Stations 3 | . 3 . Recycling Units 2 | . 2 . Scanalyzers . | . . . Garrison Access . | . . . Terminal Hacks 1 | . 1 . Prototype ID Bank 1 | . 1 . Fabricator Hacks . | . . . Repair Station Hacks 2 | . 2 . Scan Component 1 | . 1 . Repair 1 | . 1 . Recycling Unit Hacks . | . . . Scanalyzer . | . . . Garrison Access Hacks . | . . . Unauthorized Hacks 3 | . 3 . Terminals 3 | . 3 . Botnet 2 | . 2 . Skim 1 | . 1 . Fabricators . | . . . Repair Stations . | . . . Recycling Units . | . . . Scanalyzers . | . . . Garrison Access . | . . . Data Cores Recovered . | . . . Used . | . . . Hacking Detections 6 | . 6 . Full Trace Events 1 | . 1 . Feedback Events . | . . . Feedback Blocked . | . . . Robot Schematics Acquired . | . . . Robots Built . | . . . Authchips . | . . . Time . | . . . Total Robot Build Rating . | . . . Part Schematics Acquired . | . . . Parts Built . | . . . Authchips . | . . . Time . | . . . Total Part Build Rating . | . . . Parts Repaired 1 | . 1 . Time 53 | . 53 . Parts Recycled . | . . . Recycled Matter . | . . . Retrieved Matter . | . . . Retrieved Components . | . . . Parts Scanalyzed . | . . . Part Schematics Acquired . | . . . Parts Damaged . | . . . Bothacking | -11 -10 -10 ------------ Run | Yrd Mat Sub Used RIF Installer . | . . . Robots Hacked . | . . . Non-combat . | . . . Combat . | . . . Robot Hacks Applied . | . . . Relay Couplers Released . | . . . Fabnet Peak Effective % . | . . . Robots Rewired . | . . . Allies Hacked . | . . . Hacks Repelled . | . . . Allies | -11 -10 -10 -------- Run | Yrd Mat Sub Total Allies . | . . . Largest Group . | . . . Highest-Rated Group . | . . . Highest-Rated Ally . | . . . Total Orders . | . . . Ally Attacks . | . . . Total Damage . | . . . Kills . | . . . Allies Corrupted . | . . . Allies Melted . | . . . Intel | -11 -10 -10 ------- Run | Yrd Mat Sub Active Infowar (turns) 873 | 19 492 362 Seismic 873 | 19 492 362 Robot Analysis Total . | . . . Derelict Logs Recovered . | . . . Drone Launches . | . . . Drone Recoveries . | . . . Exploration | -11 -10 -10 ------------- Run | Yrd Mat Sub Turns Passed 968 | 67 492 409 Spaces Moved 819 | 36 389 394 Core 3 | . . 3 Treads 93 | . 93 . Legs 91 | 36 55 . Wheels 632 | . 241 391 Hover . | . . . Flight . | . . . Fastest Speed 50 | 120 80 50 Average Speed 93 | 120 105 79 Slowest Speed 160 | 120 160 80 Overloaded Moves . | . . . Propulsion Burnouts . | . . . Robots Hopped . | . . . Potential Cave-ins . | . . . Cave-ins Triggered . | . . . Exploration Rate (%) 28 | 4 52 29 Regions Visited 2 Branch Regions 1 Pre-discovered Areas . | . . . Known Exits Taken . | . . . Unknown Exits Taken 2 | 1 1 . Scrap Searched 3 | . . 3 Spaces Dug . | . . . Terrain Destroyed 37 | . 10 27 Melee . | . . . Projectile . | . . . AOE 37 | . 10 27 Terrain Rammed . | . . . Walls Destroyed . | . . . Machines Disabled . | . . . Actions | -11 -10 -10 --------- Run | Yrd Mat Sub Total 938 | 45 447 446 Wait 40 | . 19 21 Move 817 | 35 388 394 Hop . | . . . Pick Up 11 | 2 9 . Fast Attach 4 | 1 3 . Attach 3 | . 1 2 Detach . | . . . Swap 6 | . 2 4 Drop 13 | . 12 1 Fire 44 | 7 13 24 Melee . | . . . Ram . | . . . Kick . | . . . Crush . | . . . Escape Stasis . | . . . Rewire . | . . . Trap . | . . . Miscellaneous . | . . . Route ------- -11/Scrapyard -10/Materials (discovered 2 exits: [*Min] / [*Sub]) -10/Subcaves History --------- Turn | Location | Event 7 | -11/Scrapyard | Discovered new exit (range 3) 68 | -11/Scrapyard | Entered Materials 331 | -10/Materials | Build established: Mutant 402 | -10/Materials | Discovered new exit (range 7) 450 | -10/Materials | Repaired Corrupted Hacking Suite 457 | -10/Materials | Discovered new exit (range 8) 560 | -10/Materials | Entered Subcaves 922 | -10/Subcaves | Ambushed by Subdweller buried in earth 936 | -10/Subcaves | Ambushed by Subdweller buried in earth 958 | -10/Subcaves | Core integrity fell below 50% 969 | -10/Subcaves | Core integrity fell below 20% 969 | -10/Subcaves | Destroyed by DY-AI8(R) with Subdweller Shrapnel Launcher Last Messages --------------- 00932_ 0S-N82(R) affixes Scrap Shield Fragment to Scrap Shield. 00935_ The unstable cave ceiling collapses. 00937_ XN-FF2(R): "ARGHSUB!" 00937_ The unstable cave ceiling collapses. 00939_ 0S-N82(R) affixes Scrap Shield Fragment to Scrap Shield. 00944_ Lgt. Ion Engine destroyed. 00946_ XN-FF2(R) affixes Scrap Shield Fragment to Scrap Shield. 00946_ XN-FF2(R) destroyed. 00948_ The unstable cave ceiling collapses. 00956_ Lgt. Treads destroyed. 00956_ Wheel destroyed. 00956_ 0S-N82(R) affixes Scrap Shield Fragment to Scrap Shield. 00965_ Assault Rifle destroyed. 00966_ Critical hit (Destroy). 00966_ Assault Rifle destroyed. 00967_ Dropped Sml. Storage Unit. Map ----- +----------------------------------------------------+ | ????# #????????????????????? | | ????# ##???????????????????? | | ????# ## ## #???????????????????? | | ????## ##### ?# #???????????????????? | | ?????## ##???## ?# #???????????????????? | | ??????########?????##??# #???????????????????? | | ???????????????????????# #???????????????????? | | ???????????????????????# ##???????????????????? | | ?????????????????#????## ##????????????????????? | | ?????????????????# ???# #?????????????????????? | | ????????????????## ### #?????????????????????? | | ????????????????# #?????????????????????? | | ????????????????# ##???????##???? ??????? | | ????????????????# ###?????# #### ??????? | | ????????????????# ###### ??????? | | ????????????????###### ?????? | | ?????????????????????## ?????? | | ??????????????????????# ??????? | | ?????????????????????## ### ???????? | | ?????????????????????# #??????????????? | | ??????????????????#### #??????????????? | | ?????????????????## ; #;; ##??????????????? | | ?????????????????# ; ##???????????????? | | ????????????????## = #????????????????? | | ????????????????# %! ####?????????????? | | ????????????????## @ ##????????????? | | ????????????????# ! #????????????? | | ????????????????# #????????????? | | ????????????????# ##???????????? | | ????????????????# ###?????????? | | ????????????????# ! #?????????? | | ????????????????## ;;; R%! R #????????? | | ?????????????????##;##"# #????????? | | ??????????????????#"?" # #### #????????? | | ??????????????????""? ###??? ????????? | | ????????????????? "? "" ##??????? ????????? | | ??????????????????""# ##"#####?????????????????? | | ????????????????? ?##" ?###?????????????????????? | | ????????????????#????##"?????????????????????????? | | ?????????????????????????????????????????????????? | | ?????????????????????????????????????????????????? | | ?????????????????????????????????????????????????? | | ?????????????????????????????????????????????????? | | ?????????????????????????????????????????????????? | | ?????????????????????????????????????????????????? | | ?????????????????????????????????????????????????? | | ?????????????????????????????????????????????????? | | ?????????????????????????????????????????????????? | | ?????????????????????????????????????????????????? | | ?????????????????????????????????????????????????? | +----------------------------------------------------+ Best States ------------- Heat Dissipation 25 Energy Generation 10 Energy Capacity 125 Matter Stores 300 Matter Capacity 300 Sight Range 16 Terrain Scan Density 10 Evasion (%) 55 Recoil Reduction 2 Item Schematics ----------------- None Robot Schematics ------------------ None Fabricated ------------ Nothing Repaired ---------- Hacking Suite | 60% | -10/Materials | Corrupted Alien Tech Used ----------------- None Achievements -------------- None Challenges ------------ None Game ------ Seed MultitargetingCoreBank Manual? 0 Play Time 00:11:28 Cumulative 61.7 hours Start 2025.08.09 @ 16:20:44 End 2025.08.09 @ 16:38:14 Sessions 1 Manual Loads 0 Difficulty Rogue Special Mode None Game No. 19 Rogue 19 Adventurer 0 Explorer 0 Win Type - Total 1 Types 0/0/1/0/0/0/0/0/0/0 Lore% 53 Gallery% 46 Achievement% 73 Wizard Run 0 Options --------- Layout 2 ASCII 0 Keyboard 1 Movement Vi Keybinds 0 Fullscreen 1 Font 28/SwanstonBold Map View 50x52 Zoom Use 0% Tactical HUD 1 Map Filters NONE Filters NONE Steam 1 RUN: efa98383-3e64-49a8-8d66-ca5d34e2cf0a